bitfinex/quotes_SOLUSD_20240708
["timestamp","ask_amount","ask_price","bid_price","bid_amount"]
[1720412844929,100.0,131.32,131.29,20.0]
[1720412845120,100.0,131.3,131.29,20.0]
[1720412845520,100.0,131.3,131.28,15.7375]
[1720412845708,100.0,131.3,131.25,51.3604]
[1720412846538,100.0,131.28,131.25,22.0090799]
[1720412846739,100.0,131.26,131.25,15.8904]
[1720412849143,100.0,131.26,131.23,35.47]
[1720412849311,100.0,131.26,131.24,20.0]
[1720412850234,100.0,131.24,131.21,0.2]
[1720412855237,0.17,131.29,131.21,0.2]
[1720412855238,100.0,131.22,131.21,0.2]
[1720412863744,100.0,131.24,131.21,0.2]
[1720412863955,100.0,131.26,131.21,35.67]
[1720412864253,100.0,131.26,131.22,20.0]
[1720412867558,100.0,131.23,131.22,20.0]
[1720412867851,100.0,131.25,131.22,20.0]
[1720412868954,100.0,131.23,131.22,20.0]
[1720412869751,100.0,131.23,131.21,0.2]
[1720412874564,100.0,131.26,131.21,0.2]
[1720412874734,100.0,131.22,131.21,0.2]
[1720412879276,100.0,131.24,131.21,0.2]
[1720412879846,100.0,131.26,131.21,0.2]
[1720412880537,100.0,131.22,131.21,0.2]
[1720412882639,100.0,131.25,131.21,0.2]
[1720412883691,100.0,131.27,131.21,35.67]
[1720412883990,44.03020117,131.44,131.24,35.47]
[1720412883991,100.0,131.33,131.24,35.47]
[1720412884179,116.5779,131.37,131.28,16.0292]
[1720412884478,100.0,131.37,131.3,35.47]
[1720412884847,6.0256,131.38,131.3,35.47]
[1720412884848,100.0,131.34,131.3,35.47]
[1720412889161,100.0,131.37,131.31,20.17]
[1720412889556,100.0,131.37,131.33,35.47]
[1720412889978,100.0,131.37,131.34,15.7092]
[1720412890271,100.0,131.39,131.34,15.7092]
[1720412890457,100.0,131.37,131.34,15.7092]
[1720412890661,100.0,131.37,131.34,15.5392]
[1720412891265,100.0,131.41,131.34,15.5392]
[1720412891571,100.0,131.43,131.36,35.47]
[1720412891880,100.0,131.43,131.39,35.47]
[1720412892064,100.0,131.43,131.4,20.0]
[1720412892479,100.0,131.45,131.4,20.0]
[1720412892651,6.1069,131.46,131.4,20.0]
[1720412892652,100.0,131.47,131.42,35.47]
[1720412892852,100.0,131.47,131.43,20.0]
[1720412893481,100.0,131.5,131.44,0.17]
[1720412893777,100.0,131.46,131.43,20.0]
[1720412893980,100.0,131.44,131.43,20.0]
[1720412894174,100.0,131.44,131.42,20.0]
[1720412894981,100.0,131.42,131.41,51.2633]
[1720412895277,100.0,131.42,131.41,71.2633]
[1720412895781,100.0,131.42,131.41,35.7933]
[1720412896884,100.0,131.42,131.41,20.0]
[1720412897063,100.0,131.42,131.4,50.0]
[1720412897381,100.0,131.44,131.4,50.0]
[1720412897877,100.0,131.41,131.4,50.0]
[1720412898182,100.0,131.41,131.4,70.0]
[1720412898391,100.0,131.41,131.4,50.0]
[1720412900380,6.1614,131.44,131.4,50.0]
[1720412900582,100.0,131.41,131.4,50.0]
[1720412903178,100.0,131.43,131.4,50.0]
[1720412903581,100.0,131.41,131.4,50.0]
[1720412903976,100.0,131.43,131.4,50.0]
[1720412904476,100.0,131.43,131.4,65.7483]
[1720412904688,100.0,131.46,131.4,65.7483]
[1720412904898,100.0,131.46,131.41,55.47]
[1720412905596,100.0,131.48,131.41,55.47]
[1720412905800,100.0,131.48,131.42,0.17]
[1720412905979,100.0,131.48,131.44,35.47]
[1720412907004,100.0,131.46,131.44,35.47]
[1720412907369,100.0,131.44,131.42,35.47]
[1720412907597,100.0,131.44,131.43,20.0]
[1720412908483,100.0,131.44,131.42,35.47]
[1720412909293,100.0,131.42,131.4,65.7483]
[1720412910090,100.0,131.42,131.4,50.0]
[1720412910297,100.0,131.44,131.4,50.0]
[1720412912395,100.0,131.42,131.4,50.0]
[1720412913896,100.0,131.44,131.4,50.0]
[1720412914985,100.0,131.41,131.4,50.0]
[1720412916097,100.0,131.43,131.4,50.0]
[1720412918704,6.2473,131.49,131.4,50.0]
[1720412918705,100.0,131.41,131.4,50.0]
[1720412920107,100.0,131.43,131.4,50.0]
[1720412921494,100.0,131.41,131.4,50.0]
[1720412930413,100.0,131.45,131.4,66.1731]
[1720412931603,22.4294,131.49,131.4,66.1731]
[1720412931604,100.0,131.42,131.4,66.1731]
[1720412932093,100.0,131.44,131.4,66.1731]
[1720412935910,100.0,131.42,131.4,66.1731]
[1720412939214,100.0,131.42,131.4,50.0]
[1720412941395,8.38438777,131.41,131.4,50.0]
[1720412941605,100.0,131.42,131.4,50.0]
[1720412943095,100.0,131.43,131.4,50.0]
[1720412943726,100.0,131.41,131.4,50.0]
[1720412944017,100.0,131.43,131.4,50.0]
[1720412945917,100.0,131.41,131.4,50.0]
[1720412947206,108.38493232,131.41,131.4,50.0]
[1720412947394,100.0,131.41,131.4,50.0]
[1720412949825,130.37879321,131.41,131.4,50.0]
[1720412951028,108.38496475,131.41,131.4,50.0]
[1720412951201,100.0,131.41,131.4,50.0]
[1720412952822,100.0,131.44,131.4,50.0]
[1720412953135,100.0,131.44,131.41,16.4248]
[1720412953422,6.4503,131.5,131.41,16.4248]
[1720412953423,100.0,131.42,131.41,16.4248]
[1720412956306,100.0,131.44,131.41,16.4248]
[1720412956499,100.0,131.41,131.4,50.0]
[1720412960535,10.41713495,131.44,131.4,50.0]
[1720412960829,100.0,131.42,131.4,50.0]
[1720412961937,100.0,131.44,131.4,50.0]
[1720412962532,21.98982133,131.43,131.4,50.0]
[1720412963527,100.0,131.44,131.4,50.0]
[1720412963737,21.99001591,131.43,131.4,50.0]
[1720412965023,100.0,131.41,131.4,50.0]
[1720412965433,100.0,131.43,131.4,50.0]
[1720412968323,100.0,131.45,131.4,50.0]
[1720412968512,103.992872,131.47,131.4,85.47]
[1720412968715,21.98660189,131.46,131.4,85.47]
[1720412969223,100.0,131.47,131.43,35.47]
[1720412969558,103.992872,131.5,131.44,0.17]
[1720412969715,21.98271265,131.49,131.44,0.17]
[1720412969911,21.98271265,131.49,131.44,20.17]
[1720412970636,100.0,131.5,131.44,20.17]
[1720412972021,100.0,131.48,131.44,20.17]
[1720412972914,100.0,131.5,131.44,20.17]
[1720412973114,3.98964559,131.52,131.46,35.47]
[1720412973115,103.98964559,131.52,131.46,35.47]
[1720412973330,100.0,131.52,131.47,15.1545]
[1720412973538,3.98964559,131.55,131.49,35.47]
[1720412973738,104.18964559,131.59,131.52,35.47]
[1720412973939,21.96959502,131.58,131.53,15.3245]
[1720412974117,100.0,131.57,131.53,15.3245]
[1720412976250,100.0,131.56,131.53,15.3245]
[1720412976539,100.2,131.59,131.53,50.7945]
[1720412977633,100.2,131.59,131.54,20.0]
[1720412977841,100.2,131.59,131.55,0.17]
[1720412978741,0.2,131.59,131.55,0.17]
[1720412979341,0.2,131.59,131.56,35.47]
[1720412980338,100.0,131.61,131.57,0.17]
[1720412980658,100.0,131.61,131.57,20.17]
[1720412981548,100.0,131.61,131.58,16.563]
[1720412981755,100.0,131.61,131.59,35.47]
[1720412983252,0.8482938,131.63,131.59,35.47]
[1720412983551,0.8482938,131.63,131.6,0.17]
[1720412984456,0.8482938,131.63,131.62,35.47]
[1720412984653,0.8482938,131.63,131.62,35.64]
[1720412984837,0.8482938,131.63,131.62,35.47]
[1720412986357,100.2,131.69,131.62,52.2732]
[1720412986562,100.2,131.69,131.63,20.17]
[1720412986943,0.2,131.69,131.63,20.17]
[1720412987164,0.2,131.69,131.65,35.47]
[1720412988347,0.2,131.69,131.66,0.17]
[1720412989051,0.2,131.69,131.65,35.47]
[1720412989446,0.2,131.69,131.66,0.17]
[1720412990053,100.0,131.71,131.68,51.4591]
[1720412990240,100.0,131.74,131.68,51.4591]
[1720412990454,100.0,131.74,131.69,0.17]
[1720412990770,100.8482938,131.76,131.69,0.17]
[1720412991059,0.8482938,131.76,131.74,35.47]
[1720412991360,0.8482938,131.76,131.75,16.1591]
[1720412992158,0.2,131.79,131.75,16.1591]
[1720412992362,0.2,131.79,131.75,36.1591]
[1720412992540,0.2,131.79,131.75,16.1591]
[1720412993139,100.0,131.78,131.75,15.9891]
[1720412993538,100.0,131.76,131.74,35.47]
[1720412993747,100.0,131.74,131.72,15.8497]
[1720412995158,0.2,131.79,131.72,15.8497]
[1720412996254,100.0,131.78,131.72,15.8497]
[1720412996582,100.0,131.75,131.72,15.8497]
[1720412996954,100.0,131.75,131.71,35.64]
[1720412997151,100.0,131.75,131.72,20.17]
[1720412997350,100.0,131.77,131.72,20.17]
[1720412997876,0.2,131.79,131.72,20.17]
[1720412998473,0.2,131.79,131.74,35.47]
[1720412998848,0.2,131.79,131.75,20.17]
[1720413000075,0.2,131.79,131.76,15.2914]
[1720413000581,0.04513192,131.81,131.77,35.47]
[1720413000870,0.04513192,131.81,131.78,20.17]
[1720413001078,0.04513192,131.81,131.79,35.47]
[1720413001374,6.2493,131.87,131.8,0.17]
[1720413001586,6.2493,131.87,131.8,20.17]
[1720413001954,100.0,131.88,131.8,20.17]
[1720413002177,100.0,131.88,131.8,20.0]
[1720413002375,100.0,131.84,131.8,20.0]
[1720413002560,100.0,131.84,131.76,21.7039]
[1720413002561,100.0,131.85,131.76,21.7039]
[1720413002761,100.0,131.83,131.77,20.0]
[1720413002953,100.0,131.81,131.76,15.2914]
[1720413003154,106.1368,131.83,131.76,15.2914]
[1720413003357,100.0,131.81,131.76,15.2914]
[1720413003948,100.0,131.76,131.72,15.8228]
[1720413004349,100.0,131.74,131.72,15.8228]
[1720413004680,100.0,131.74,131.68,15.8228]
[1720413005055,100.0,131.72,131.68,15.8228]
[1720413005988,15.0,131.81,131.68,15.8228]
[1720413005989,100.0,131.7,131.68,15.8228]
[1720413006153,100.0,131.72,131.68,15.8228]
[1720413006357,100.0,131.7,131.65,5.98832356]
[1720413006653,100.0,131.7,131.64,31.51763677]
[1720413007120,100.0,131.68,131.64,15.5158]
[1720413007273,100.0,131.66,131.64,15.5158]
[1720413007455,100.0,131.66,131.6,70.82393677]
[1720413007780,100.0,131.68,131.6,70.82393677]
[1720413008075,100.0,131.66,131.6,70.82393677]
[1720413008486,100.0,131.66,131.61,20.0]
[1720413008781,100.0,131.7,131.61,30.38067011]
[1720413008981,100.0,131.7,131.62,10.38067011]
[1720413009165,100.0,131.68,131.62,10.38067011]
[1720413009471,100.0,131.71,131.63,20.0]
[1720413010068,100.0,131.71,131.61,20.0]
[1720413010549,100.0,131.72,131.61,30.38067011]
[1720413010780,100.0,131.7,131.61,30.38067011]
[1720413010990,6.5058,131.75,131.62,0.17]
[1720413010991,100.0,131.68,131.62,0.17]
[1720413011365,100.0,131.66,131.62,0.17]
[1720413011566,100.0,131.66,131.61,20.0]
[1720413012586,100.0,131.64,131.6,15.2954]
[1720413013396,100.0,131.66,131.6,15.2954]
[1720413013879,100.0,131.68,131.6,15.2954]
[1720413015090,100.0,131.66,131.6,15.2954]
[1720413015289,100.0,131.66,131.61,20.0]
[1720413016272,100.0,131.68,131.62,0.17]
[1720413016472,100.0,131.73,131.62,0.17]
[1720413016687,6.5341,131.74,131.62,0.17]
[1720413016876,100.0,131.73,131.62,0.17]
[1720413018093,100.0,131.73,131.63,32.15687011]
[1720413018262,100.0,131.73,131.64,20.17]
[1720413018467,100.0,131.71,131.64,20.17]
[1720413019088,100.0,131.69,131.64,20.17]
[1720413019287,100.0,131.69,131.63,21.7762]
[1720413019597,100.0,131.71,131.63,21.7762]
[1720413019790,100.0,131.71,131.64,0.17]
[1720413021367,100.0,131.69,131.64,20.0]
[1720413022394,100.0,131.71,131.64,20.0]
[1720413022571,100.0,131.68,131.64,20.0]
[1720413022777,100.0,131.66,131.64,20.0]
[1720413022970,100.0,131.66,131.63,15.1154]
[1720413023387,100.0,131.66,131.59,50.06067011]
[1720413023683,100.0,131.63,131.55,6.1756]
[1720413023889,100.0,131.61,131.55,6.1756]
[1720413025187,100.0,131.61,131.56,20.0]
[1720413026004,100.0,131.63,131.55,6.1756]
[1720413027194,100.0,131.65,131.56,20.17]
[1720413027703,100.0,131.63,131.56,20.17]
[1720413028378,100.0,131.61,131.56,0.17]
[1720413028579,100.0,131.61,131.55,6.1756]
[1720413029997,100.0,131.59,131.52,6.03853702]
[1720413030181,100.0,131.57,131.51,15.9774]
[1720413030386,100.0,131.55,131.51,15.9774]
[1720413030698,6.2658,131.61,131.51,15.9774]
[1720413030699,100.0,131.57,131.51,15.9774]
[1720413031489,100.0,131.53,131.51,0.2]
[1720413032680,100.0,131.57,131.51,0.2]
[1720413033681,100.0,131.54,131.51,0.2]
[1720413033880,100.0,131.52,131.51,0.2]
[1720413038618,100.0,131.57,131.51,0.2]
[1720413039193,100.0,131.57,131.52,0.17]
[1720413039403,6.2658,131.61,131.52,20.17]
[1720413039404,100.0,131.6,131.52,20.17]
[1720413039595,100.0,131.58,131.52,20.17]
[1720413040485,100.0,131.58,131.52,0.17]
[1720413040806,100.0,131.58,131.51,15.3372]
[1720413041118,100.0,131.54,131.51,0.2]
[1720413041291,100.0,131.52,131.51,0.2]
[1720413041610,100.0,131.54,131.51,0.2]
[1720413041788,100.0,131.52,131.51,0.2]
[1720413047201,6.544,131.54,131.51,0.2]
[1720413047419,100.0,131.55,131.51,0.2]
[1720413048597,100.0,131.53,131.51,0.2]
[1720413048814,16.3304,131.6,131.51,0.2]
[1720413048815,100.0,131.6,131.51,16.1716]
[1720413049014,100.0,131.6,131.52,0.17]
[1720413049190,100.0,131.57,131.52,0.17]
[1720413050111,100.0,131.6,131.52,0.17]
[1720413050318,100.0,131.6,131.52,6.3409]
[1720413050624,100.0,131.59,131.52,6.3409]
[1720413051117,100.0,131.57,131.52,6.3409]
[1720413051418,100.0,131.62,131.52,6.3409]
[1720413051615,100.0,131.62,131.54,15.2693]
[1720413051832,100.0,131.62,131.55,20.17]
[1720413052004,100.0,131.68,131.56,22.5638]
[1720413052209,100.0,131.71,131.58,55.6217]
[1720413052513,100.0,131.75,131.6,6.6221]
[1720413052729,100.0,131.72,131.62,15.9417]
[1720413053014,100.0,131.72,131.63,20.17]
[1720413054211,100.0,131.7,131.63,20.17]
[1720413054411,100.0,131.72,131.63,20.17]
[1720413055503,100.0,131.71,131.63,20.17]
[1720413055815,100.0,131.68,131.63,20.17]
[1720413056030,100.0,131.68,131.62,15.9417]
[1720413056336,100.0,131.67,131.62,15.9417]
[1720413056899,100.0,131.63,131.57,15.8003]
[1720413057204,100.0,131.61,131.57,15.8003]
[1720413057922,100.0,131.59,131.54,6.16651325]
[1720413058219,100.0,131.57,131.53,16.6437]
[1720413059105,6.2823,131.68,131.53,16.6437]
[1720413059311,100.0,131.65,131.54,59.68]
[1720413059611,6.2823,131.68,131.53,16.6437]
[1720413059612,100.0,131.61,131.53,16.6437]
[1720413060407,100.0,131.63,131.53,16.6437]
[1720413060627,100.0,131.64,131.53,16.6437]
[1720413060806,100.0,131.64,131.54,20.17]
[1720413061001,100.0,131.68,131.55,21.5684]
[1720413061206,100.0,131.68,131.56,43.12]
[1720413061404,100.0,131.67,131.58,39.68]
[1720413061608,100.0,131.67,131.59,20.17]
[1720413061906,100.0,131.71,131.6,21.5684]
[1720413062105,100.0,131.71,131.61,20.17]
[1720413062715,100.0,131.69,131.61,20.17]
[1720413063316,100.0,131.73,131.61,20.17]
[1720413063722,100.0,131.73,131.62,55.0326]
[1720413064015,100.0,131.76,131.64,6.5028]
[1720413064212,100.0,131.76,131.65,36.2007]
[1720413064423,100.0,131.76,131.66,39.68]
[1720413064635,100.0,131.76,131.67,20.17]
[1720413064820,100.0,131.74,131.67,20.17]
[1720413065033,100.0,131.76,131.67,20.17]
[1720413065233,100.0,131.73,131.67,20.17]
[1720413065610,100.0,131.73,131.67,0.17]
[1720413066329,100.0,131.78,131.67,0.17]
[1720413066710,100.0,131.74,131.67,0.17]
[1720413067733,100.0,131.72,131.67,0.17]
[1720413067935,100.0,131.72,131.66,0.17]
[1720413068239,100.0,131.74,131.66,0.17]
[1720413068715,100.0,131.77,131.66,0.17]
[1720413069115,100.0,131.77,131.66,20.17]
[1720413070114,100.0,131.8,131.68,6.1817]
[1720413070332,100.0,131.8,131.69,20.17]
[1720413070741,100.0,131.8,131.7,16.5173851]
[1720413071036,100.0,131.8,131.71,0.8468337]
[1720413071237,106.5022,131.82,131.71,20.8468337]
[1720413071439,106.5022,131.82,131.71,20.17]
[1720413071642,100.0,131.82,131.71,20.17]
[1720413072045,100.0,131.82,131.72,6.1817]
[1720413072214,100.0,131.84,131.73,36.6175]
[1720413072415,100.0,131.84,131.73,76.2975]
[1720413072630,100.0,131.82,131.73,76.2975]
[1720413073244,100.0,131.8,131.73,56.1275]
[1720413073456,100.0,131.77,131.73,16.4475]
[1720413073738,100.0,131.79,131.73,16.4475]
[1720413073920,100.0,131.81,131.73,16.4475]
[1720413074440,100.0,131.76,131.73,16.4475]
[1720413074951,100.0,131.74,131.69,15.1897]
[1720413076545,100.0,131.76,131.69,15.1897]
[1720413076720,100.0,131.78,131.69,15.1897]
[1720413076921,100.0,131.78,131.7,0.17]
[1720413077439,100.0,131.8,131.7,0.17]
[1720413078118,100.0,131.82,131.72,6.6364]
[1720413078345,100.0,131.82,131.73,20.17]
[1720413079535,100.0,131.85,131.74,16.3355]
[1720413079743,100.0,131.85,131.75,20.17]
[1720413080843,106.6506,131.87,131.75,20.17]
[1720413081032,100.0,131.85,131.75,20.17]
[1720413081948,100.0,131.8,131.74,16.3355]
[1720413082179,100.0,131.85,131.74,16.3355]
[1720413082942,100.0,131.81,131.74,16.3355]
[1720413083152,100.0,131.81,131.75,0.17]
[1720413083519,100.0,131.79,131.74,16.3355]
[1720413083951,100.0,131.75,131.74,16.3355]
[1720413084137,100.0,131.75,131.7,15.144]
[1720413085035,100.0,131.77,131.7,15.144]
[1720413085349,100.0,131.79,131.7,15.144]
[1720413085541,100.0,131.74,131.7,15.144]
[1720413086051,100.0,131.76,131.7,15.144]
[1720413086422,100.0,131.73,131.7,15.144]
[1720413086724,100.0,131.75,131.7,15.144]
[1720413086919,100.0,131.77,131.7,15.144]
[1720413087162,100.0,131.75,131.7,15.144]
[1720413087329,100.0,131.77,131.7,15.144]
[1720413087525,100.0,131.73,131.7,15.144]
[1720413089450,100.0,131.76,131.7,15.144]
[1720413090454,100.0,131.73,131.7,15.144]
[1720413091553,100.0,131.76,131.7,15.144]
[1720413092241,100.0,131.71,131.7,15.144]
[1720413092432,100.0,131.74,131.7,15.144]
[1720413093127,100.0,131.77,131.7,15.144]
[1720413093738,100.0,131.72,131.7,15.144]
[1720413095663,100.0,131.74,131.7,15.144]
[1720413096245,6.0308,131.8,131.7,15.144]
[1720413096246,100.0,131.76,131.7,15.144]
[1720413097438,100.0,131.78,131.71,0.17]
[1720413097634,100.0,131.8,131.72,6.569]
[1720413097840,100.0,131.8,131.73,0.17]
[1720413098039,100.0,131.77,131.73,20.0]
[1720413098359,100.0,131.77,131.7,15.144]
[1720413098534,100.0,131.79,131.71,20.0]
[1720413099639,100.0,131.79,131.72,0.17]
[1720413099837,100.0,131.79,131.71,20.0]
[1720413100162,100.0,131.77,131.71,20.0]
[1720413100749,100.0,131.79,131.71,20.0]
[1720413100934,100.0,131.79,131.72,0.17]
[1720413101353,100.0,131.79,131.71,20.0]
[1720413101962,100.0,131.76,131.71,20.0]
[1720413102629,100.0,131.79,131.71,20.0]
[1720413102834,100.0,131.79,131.72,0.17]
[1720413104353,100.0,131.77,131.72,0.17]
[1720413106649,100.0,131.77,131.71,20.0]
[1720413106963,100.0,131.79,131.71,20.0]
[1720413107150,100.0,131.79,131.72,0.17]
[1720413107555,6.1286,131.85,131.72,0.17]
[1720413107556,100.0,131.82,131.72,0.17]
[1720413107758,100.0,131.78,131.72,0.17]
[1720413108263,100.0,131.78,131.71,20.0]
[1720413108463,100.0,131.76,131.71,20.0]
[1720413109342,100.0,131.79,131.72,0.17]
[1720413109539,100.0,131.79,131.71,20.0]
[1720413110564,100.0,131.82,131.71,20.0]
[1720413110755,100.0,131.8,131.72,0.17]
[1720413111470,100.0,131.78,131.7,15.144]
[1720413111670,100.0,131.78,131.71,0.17]
[1720413111977,100.0,131.75,131.7,15.144]
[1720413112147,100.0,131.8,131.7,15.144]
[1720413112854,100.0,131.8,131.71,20.0]
[1720413113270,106.524,131.87,131.73,16.2836]
[1720413113566,100.0,131.83,131.74,20.17]
[1720413114466,6.524,131.87,131.74,20.17]
[1720413114467,100.0,131.81,131.74,20.17]
[1720413115058,100.0,131.85,131.74,20.17]
[1720413115766,100.0,131.83,131.75,16.2836]
[1720413116074,100.0,131.83,131.76,20.17]
[1720413116379,100.0,131.87,131.77,6.1817]
[1720413116671,8.36747886,131.86,131.78,20.17]
[1720413116975,100.0,131.87,131.78,20.17]
[1720413117277,100.0,131.87,131.79,15.8101]
[1720413117478,101.0482938,131.89,131.8,20.0]
[1720413117767,100.0,131.87,131.8,20.0]
[1720413118265,1.0482938,131.89,131.81,0.17]
[1720413118473,1.0482938,131.89,131.82,15.8101]
[1720413118647,1.0482938,131.89,131.83,26.3517]
[1720413119049,101.0482938,131.89,131.83,26.3517]
[1720413120450,1.0482938,131.89,131.83,26.3517]
[1720413121058,100.0,131.88,131.83,26.1817]
[1720413121264,1.0482938,131.89,131.83,26.1817]
[1720413121862,100.0,131.88,131.83,26.1817]
[1720413122064,100.0,131.86,131.82,15.8101]
[1720413122875,1.0482938,131.89,131.82,15.8101]
[1720413123254,1.0482938,131.89,131.83,0.17]
[1720413123455,1.0482938,131.89,131.83,20.17]
[1720413123787,101.0482938,131.89,131.83,20.17]
[1720413123961,101.0482938,131.89,131.83,20.0]
[1720413124453,1.0482938,131.89,131.84,0.17]
[1720413125280,1.0482938,131.89,131.85,23.0365]
[1720413125574,1.0482938,131.89,131.86,0.17]
[1720413125782,1.0482938,131.89,131.86,20.17]
[1720413126158,100.0,131.94,131.87,15.8207]
[1720413126472,100.0,131.98,131.89,22.3192]
[1720413126686,100.0,131.98,131.9,20.17]
[1720413127458,0.2,131.99,131.91,54.7567]
[1720413127679,0.2,131.99,131.92,20.17]
[1720413127859,100.0,131.97,131.92,20.17]
[1720413128057,100.0,131.97,131.92,20.0]
[1720413128363,0.2,131.99,131.92,20.0]
[1720413129788,0.2,131.99,131.93,0.17]
[1720413130381,0.2,131.99,131.92,20.0]
[1720413131178,100.0,131.98,131.92,20.0]
[1720413131762,100.0,131.96,131.92,20.0]
[1720413132075,0.2,131.99,131.92,20.0]
[1720413133766,0.2,131.99,131.93,0.17]
[1720413135089,100.0,131.98,131.92,20.0]
[1720413135259,100.0,131.96,131.92,20.0]
[1720413135460,0.2,131.99,131.92,20.0]
[1720413135688,100.2,131.99,131.92,20.0]
[1720413136674,0.2,131.99,131.92,20.0]
[1720413136983,0.2,131.99,131.93,0.17]
[1720413137193,0.2,131.99,131.92,20.0]
[1720413138392,0.2,131.99,131.93,0.17]
[1720413138582,0.2,131.99,131.95,35.17]
[1720413138786,100.0,131.97,131.92,20.0]
[1720413139101,0.2,131.99,131.93,35.17]
[1720413139392,0.2,131.99,131.94,20.0]
[1720413139578,100.0,131.98,131.94,20.0]
[1720413139765,100.0,131.98,131.93,20.0]
[1720413139966,0.2,131.99,131.93,20.0]
[1720413140561,0.2,131.99,131.96,16.5567]
[1720413142283,100.0,131.98,131.96,16.5567]
[1720413143092,0.2,131.99,131.96,16.5567]
[1720413144481,0.2,131.99,131.98,35.17]
[1720413144685,0.8482938,132.02,131.98,35.17]
[1720413144986,100.8482938,132.02,131.98,35.17]
[1720413145900,100.0,132.0,131.98,35.17]
[1720413147478,100.8482938,132.02,131.98,35.17]
[1720413147698,0.8482938,132.02,131.98,35.17]
[1720413151297,0.8482938,132.02,132.01,35.17]
[1720413151688,100.0,132.08,132.01,35.17]
[1720413151889,100.0,132.08,132.02,15.3751]
[1720413152191,100.0,132.08,132.02,35.3751]
[1720413152599,100.0,132.08,132.02,36.88973396]
[1720413152782,0.2,132.09,132.02,36.88973396]
[1720413153693,0.2,132.09,132.04,35.17]
[1720413154002,0.2,132.09,132.07,35.17]
[1720413154208,0.8482938,132.15,132.08,6.2101]
[1720413154385,0.8482938,132.15,132.1,35.17]
[1720413154887,0.8482938,132.15,132.11,15.7988]
[1720413155583,0.8482938,132.15,132.13,35.17]
[1720413156881,100.0,132.13,132.11,15.7988]
[1720413157095,100.0,132.13,132.08,41.3801]
[1720413157479,100.0,132.1,132.03,35.17]
[1720413157683,100.0,132.1,132.03,51.2719]
[1720413157914,100.0,132.08,132.03,51.2719]
[1720413158586,100.0,132.14,132.03,16.1019]